bitfinex/quotes_ETHUSD_20250804
["timestamp","ask_amount","ask_price","bid_price","bid_amount"]
[1754287758067,4.291,3543.7,3543.6,4.88528893]
[1754287758947,4.291,3543.7,3543.6,2.96278893]
[1754287759143,4.291,3543.7,3543.6,4.88528893]
[1754287759457,4.293,3543.7,3543.6,5.34868893]
[1754287760471,0.001,3543.7,3543.6,5.34868893]
[1754287760627,4.292,3543.7,3543.6,5.34868893]
[1754287763856,4.292,3543.7,3543.6,4.88528893]
[1754287764097,4.292,3543.7,3542.3,1.9245]
[1754287764375,4.292,3543.7,3543.2,0.1408]
[1754287764376,2.6647,3543.6,3543.2,0.1408]
[1754287764673,0.55,3543.5,3543.3,0.002]
[1754287764836,7.0825,3543.5,3543.3,0.002]
[1754287765041,7.2243,3543.4,3543.3,0.002]
[1754287765456,7.2243,3543.4,3543.3,2.82422786]
[1754287766814,7.2243,3543.4,3543.3,0.002]
[1754287768059,7.2243,3543.4,3543.3,2.82422786]
[1754287768261,4.9888,3543.4,3543.3,0.002]
[1754287768445,7.2243,3543.4,3543.3,0.002]
[1754287777172,7.3478,3543.4,3543.3,0.002]
[1754287777378,8.89550757,3543.4,3543.3,0.002]
[1754287777998,13.78065135,3543.4,3543.3,0.002]
[1754287778375,16.60279956,3543.4,3543.3,0.002]
[1754287779415,13.78065135,3543.4,3543.3,0.002]
[1754287779920,13.92808209,3543.4,3543.3,0.002]
[1754287780118,12.4442303,3543.4,3543.3,0.002]
[1754287780306,16.7512303,3543.4,3543.3,0.002]
[1754287781779,19.7512303,3543.4,3543.3,0.002]
[1754287784076,19.60379956,3543.4,3543.3,0.002]
[1754287785480,20.45213956,3543.4,3543.3,0.002]
[1754287785984,20.45313956,3543.4,3543.3,0.002]
[1754287786713,22.14913956,3543.4,3543.3,0.002]
[1754287789515,22.29659142,3543.4,3543.3,0.002]
[1754287791414,20.39569142,3543.4,3543.3,0.002]
[1754287791582,22.29459142,3543.4,3543.3,0.002]
[1754287792021,20.59859142,3543.4,3543.3,0.002]
[1754287792195,8.11244321,3543.4,3543.3,0.002]
[1754287792517,9.47139564,3543.4,3543.3,2.3467]
[1754287792881,5.16639564,3543.4,3543.3,2.3467]
[1754287793081,9.32394378,3543.4,3543.3,5.16892786]
[1754287793584,9.87394378,3543.4,3543.3,5.16892786]
[1754287795885,5.56894378,3543.4,3543.3,5.16892786]
[1754287796081,0.6918,3543.4,3543.3,5.16892786]
[1754287796300,4.305,3543.4,3543.3,5.16892786]
[1754287796497,0.001,3543.7,3543.4,2.82214821]
[1754287796700,0.001,3543.7,3543.6,2.82198893]
[1754287797017,4.308,3543.7,3543.6,2.82198893]
[1754287797393,4.308,3543.7,3543.6,5.16668893]
[1754287798617,4.308,3543.7,3543.6,2.82198893]
[1754287798618,0.001,3543.7,3543.6,2.82198893]
[1754287798824,4.4628,3543.7,3543.6,5.16668893]
[1754287800720,0.1418,3543.7,3543.6,5.16668893]
[1754287800925,4.4628,3543.7,3543.6,5.16668893]
[1754287801125,0.1418,3543.7,3543.6,5.16668893]
[1754287801328,0.55,3544.2,3544.1,2.82159081]
[1754287801624,0.55,3544.2,3544.1,5.13349081]
[1754287801825,0.6908,3544.2,3544.1,5.13349081]
[1754287802030,5.0118,3544.2,3544.1,5.13349081]
[1754287802196,5.0118,3544.2,3544.1,2.82159081]
[1754287802197,5.0108,3544.2,3544.1,2.82159081]
[1754287802398,5.0108,3544.2,3544.1,4.67809081]
[1754287803044,5.0108,3544.2,3543.6,0.1408]
[1754287803204,0.03526988,3544.1,3543.6,0.21341282]
[1754287803403,0.11099443,3544.3,3542.9,4.321]
[1754287803404,5.0128,3544.0,3543.9,2.82175004]
[1754287803612,5.0128,3544.0,3543.9,5.13365004]
[1754287803804,5.0128,3544.0,3543.9,4.67825004]
[1754287804134,0.6908,3544.0,3543.9,4.67825004]
[1754287804305,5.0158,3544.0,3543.9,4.67825004]
[1754287805028,5.0158,3544.0,3543.9,1.8565]
[1754287805423,5.0158,3544.0,3543.9,4.67825004]
[1754287806340,5.0158,3544.0,3543.8,2.82177513]
[1754287806542,5.0158,3544.0,3543.9,2.82175004]
[1754287806743,5.0158,3544.0,3543.9,4.67825004]
[1754287806950,0.6908,3544.0,3543.9,4.67825004]
[1754287807410,5.0138,3544.0,3543.9,4.67825004]
[1754287808167,0.72607088,3544.0,3543.6,2.82196495]
[1754287808443,4.87714378,3544.2,3543.6,2.82191389]
[1754287808444,0.55,3543.8,3543.6,2.82191389]
[1754287808748,0.1408,3543.7,3543.4,2.82212698]
[1754287808923,4.877,3543.6,3543.4,2.82214787]
[1754287809127,4.4678,3543.5,3543.2,1.8565]
[1754287809325,4.4678,3543.5,3543.1,2.82235739]
[1754287809532,4.4678,3543.5,3543.4,4.67864821]
[1754287810213,4.4678,3543.5,3543.4,1.8565]
[1754287810414,4.4678,3543.5,3543.4,4.67864821]
[1754287810614,4.4678,3543.5,3543.4,1.8565]
[1754287810815,4.4678,3543.5,3543.4,4.67864821]
[1754287811051,4.4678,3543.5,3543.3,2.82420505]
[1754287811348,4.4678,3543.5,3543.3,0.002]
[1754287811658,4.879,3543.4,3543.3,0.002]
[1754287812241,4.881,3543.4,3543.3,0.002]
[1754287812881,7.2252,3543.4,3543.3,0.002]
[1754287813057,8.24400082,3543.4,3543.3,0.002]
[1754287813485,1.56880082,3543.4,3543.3,0.002]
[1754287813652,7.2282,3543.4,3543.3,0.002]
[1754287815283,10.05034821,3543.4,3543.3,0.002]
[1754287816456,3.83454821,3543.4,3543.3,0.002]
[1754287816669,8.16954821,3543.4,3543.3,0.002]
[1754287816875,10.05134821,3543.4,3543.3,0.002]
[1754287817088,11.35276853,3543.4,3543.3,0.002]
[1754287818971,9.47096853,3543.4,3543.3,0.002]
[1754287819172,11.35276853,3543.4,3543.3,0.002]
[1754287821896,19.22991231,3543.4,3543.3,0.002]
[1754287826004,19.37735128,3543.4,3543.3,0.002]
[1754287826668,19.37335128,3543.4,3543.3,0.002]
[1754287827854,19.37435128,3543.4,3543.3,0.002]
[1754287830656,12.69815128,3543.4,3543.3,1.8202]
[1754287830867,17.03115128,3543.4,3543.3,1.8202]
[1754287831044,17.03115128,3543.4,3543.3,0.002]
[1754287833048,17.48565128,3543.4,3543.3,0.002]
[1754287833355,19.37325128,3543.4,3543.3,0.002]
[1754287836353,17.48565128,3543.4,3543.3,0.002]
[1754287837055,19.37325128,3543.4,3543.3,0.002]
[1754287837261,17.48565128,3543.4,3543.3,0.002]
[1754287837635,19.37325128,3543.4,3543.3,0.002]
[1754287838671,19.37025128,3543.4,3543.3,0.002]
[1754287839058,15.04025128,3543.4,3543.3,0.002]
[1754287839254,19.37025128,3543.4,3543.3,0.002]
[1754287844038,17.02815128,3543.4,3543.3,0.002]
[1754287844440,17.48265128,3543.4,3543.3,0.002]
[1754287844678,17.02815128,3543.4,3543.3,0.002]
[1754287844888,19.37025128,3543.4,3543.3,0.002]
[1754287849083,17.02815128,3543.4,3543.3,0.002]
[1754287849285,19.37025128,3543.4,3543.3,0.002]
[1754287850578,12.69815128,3543.4,3543.3,0.002]
[1754287850768,31.87631319,3543.4,3543.3,0.002]
[1754287850963,33.76391319,3543.4,3543.3,0.002]
[1754287851856,35.45991319,3543.4,3543.3,0.002]
[1754287852273,31.13591319,3543.4,3543.3,0.002]
[1754287852479,35.46191319,3543.4,3543.3,0.002]
[1754287853498,35.46291319,3543.4,3543.3,0.002]
[1754287857038,9.14815128,3543.4,3543.3,1.8202]
[1754287857203,7.98753096,3543.4,3543.3,2.2821]
[1754287857372,12.31253096,3543.4,3543.3,2.2821]
[1754287857766,15.31253096,3543.4,3543.3,2.2821]
[1754287857964,15.86253096,3543.4,3543.3,2.2821]
[1754287858711,18.40918955,3543.4,3543.3,0.002]
[1754287859174,18.40918955,3543.4,3543.3,1.9828]
[1754287859685,18.40918955,3543.4,3543.3,0.002]
[1754287860089,14.08418955,3543.4,3543.3,0.002]
[1754287860420,18.41618955,3543.4,3543.3,1.9828]
[1754287860623,18.41518955,3543.4,3543.3,0.002]
[1754287860799,18.41518955,3543.4,3543.3,1.9828]
[1754287861514,18.41518955,3543.4,3543.3,0.002]
[1754287862512,20.78598955,3543.4,3543.3,0.002]
[1754287862812,14.08418955,3543.4,3543.3,0.002]
[1754287862988,18.41518955,3543.4,3543.3,0.002]
[1754287863193,18.41518955,3543.4,3543.3,1.9828]
[1754287863713,14.08418955,3543.4,3543.3,0.002]
[1754287863893,14.08418955,3543.4,3543.3,2.4558]
[1754287864213,12.49438275,3543.4,3543.3,2.4558]
[1754287864420,15.31653096,3543.4,3543.3,2.4558]
[1754287864913,15.86653096,3543.4,3543.3,2.4558]
[1754287865420,11.53753096,3543.4,3543.3,2.4558]
[1754287865715,15.86653096,3543.4,3543.3,2.4558]
[1754287866012,18.4135846,3543.4,3543.3,2.4558]
[1754287868412,14.0845846,3543.4,3543.3,2.4558]
[1754287868717,18.4115846,3543.4,3543.3,2.4558]
[1754287869217,14.0845846,3543.4,3543.3,2.4558]
[1754287869520,18.4115846,3543.4,3543.3,2.4558]
[1754287869719,15.58843639,3543.4,3543.3,2.4558]
[1754287870215,18.4105846,3543.4,3543.3,2.4558]
[1754287871419,13.03938275,3543.4,3543.3,2.4558]
[1754287871715,15.86153096,3543.4,3543.3,2.4558]
[1754287871925,13.03938275,3543.4,3543.3,2.4558]
[1754287873343,15.86153096,3543.4,3543.3,2.4558]
[1754287873886,11.53753096,3543.4,3543.3,2.4558]
[1754287874100,15.85953096,3543.4,3543.3,2.4558]
[1754287874296,8.71538275,3543.4,3543.3,2.4558]
[1754287874591,13.03738275,3543.4,3543.3,2.4558]
[1754287875307,18.40587079,3543.4,3543.3,0.002]
[1754287875688,18.40587079,3543.4,3543.3,1.9828]
[1754287875890,18.40587079,3543.4,3543.3,0.002]
[1754287876811,18.40587079,3543.4,3543.3,1.9828]
[1754287877033,18.40587079,3543.4,3543.3,0.002]
[1754287878204,18.40487079,3543.4,3543.3,0.002]
[1754287878406,14.08387079,3543.4,3543.3,0.002]
[1754287878606,18.40387079,3543.4,3543.3,1.9828]
[1754287880028,18.40187079,3543.4,3543.3,1.9828]
[1754287880392,15.57972258,3543.4,3543.3,1.9828]
[1754287880592,18.40187079,3543.4,3543.3,1.9828]
[1754287881531,15.57972258,3543.4,3543.3,2.4558]
[1754287881896,15.57972258,3543.4,3543.3,1.9828]
[1754287882230,18.40187079,3543.4,3543.3,1.9828]
[1754287882432,18.40187079,3543.4,3543.3,0.002]
[1754287882994,14.08387079,3543.4,3543.3,0.002]
[1754287883211,20.77167079,3543.4,3543.3,0.002]
[1754287886971,18.40287079,3543.4,3543.3,0.002]
[1754287887740,20.77367079,3543.4,3543.3,0.002]
[1754287889352,18.40287079,3543.4,3543.3,0.002]
[1754287889566,20.84177079,3543.4,3543.3,0.002]
[1754287890556,2.82238717,3543.1,3542.6,0.4395]
[1754287890740,4.869,3543.0,3542.9,1.8791]
[1754287890954,10.69147782,3543.0,3542.9,1.8791]
[1754287891160,10.97970429,3543.0,3542.9,2.3186]
[1754287891473,13.1342453,3543.0,3542.9,2.3186]
[1754287891644,13.1342453,3543.0,3542.9,2.3206]
[1754287891844,13.1342453,3543.0,3542.9,1.8811]
[1754287894054,18.00938908,3543.0,3542.9,1.8811]
[1754287894257,13.69038908,3543.0,3542.9,1.8811]
[1754287894459,18.00738908,3543.0,3542.9,1.8811]
[1754287894965,15.18491126,3543.0,3542.9,1.8811]
[1754287895157,10.86791126,3543.0,3542.9,1.8811]
[1754287895368,9.47937025,3543.0,3542.9,2.3206]
[1754287895534,9.47937025,3543.0,3542.9,5.1431465]
[1754287895949,10.02937025,3543.0,3542.9,5.1431465]
[1754287898391,5.71337025,3543.0,3542.9,5.1431465]
[1754287898690,10.02837025,3543.0,3542.9,5.1431465]
[1754287899289,0.28822647,3543.0,3542.9,5.1431465]
[1754287899600,4.60322647,3543.0,3542.9,5.1431465]
[1754287899750,4.46242647,3543.0,3542.9,5.1431465]
[1754287904647,4.45942647,3543.0,3542.9,5.1431465]
[1754287906628,4.45842647,3543.0,3542.9,5.1431465]
[1754287908562,0.14742647,3543.0,3542.9,5.1431465]
[1754287908857,4.45642647,3543.0,3542.9,8.2839465]
[1754287909872,0.14742647,3543.0,3542.9,8.2839465]
[1754287912059,6.781,3543.6,3543.5,2.82206857]
[1754287912219,11.091,3543.6,3543.5,5.14066857]
[1754287912420,11.091,3543.6,3543.5,5.28146857]
[1754287913747,11.091,3543.6,3543.5,2.82206857]
[1754287914681,6.781,3543.6,3543.5,2.82206857]
[1754287914868,11.089,3543.6,3543.5,2.82206857]
[1754287915193,11.089,3543.6,3542.9,0.002]
[1754287915343,11.089,3543.6,3543.5,2.82206857]
[1754287915754,11.2298,3543.6,3543.0,0.1408]
[1754287915953,11.2298,3543.6,3543.1,1.8791]
[1754287916282,11.2298,3543.6,3543.4,2.82214332]
[1754287916587,11.6766,3543.6,3543.5,2.82206857]
[1754287917091,11.2298,3543.6,3543.4,2.82209905]
[1754287917262,13.6687,3543.6,3543.5,2.82206857]
[1754287917463,13.6687,3543.6,3543.4,2.82212352]
[1754287917779,11.2298,3543.6,3543.5,2.82206857]
[1754287919087,11.2298,3543.6,3543.4,2.82212982]
[1754287919262,11.2298,3543.6,3543.3,2.82220822]
[1754287919462,13.1991,3543.6,3543.3,2.82220822]
[1754287919663,11.6655,3543.6,3543.4,2.82208499]
[1754287919862,13.6348,3543.6,3543.4,2.82208499]
[1754287920683,6.8538,3543.6,3543.4,2.82208499]
[1754287920989,0.4357,3543.5,3543.0,0.1408]
[1754287921196,4.308,3543.4,3543.3,2.82222786]
[1754287921974,4.308,3543.4,3543.0,0.1408]
[1754287922290,0.1408,3543.3,3543.1,2.82236341]
[1754287922497,4.307,3543.2,3543.1,2.82236341]
[1754287922999,4.7427,3543.2,3542.9,0.002]
[1754287923308,2.5458,3543.1,3542.9,0.002]
[1754287923472,4.307,3543.0,3542.9,0.002]
[1754287923975,4.307,3543.0,3542.9,2.8245465]
[1754287924724,4.307,3543.0,3542.9,0.002]
[1754287925100,4.307,3543.0,3542.9,2.8245465]
[1754287925394,4.307,3543.0,3542.9,0.002]
[1754287925799,4.307,3543.0,3542.9,2.8245465]
[1754287927000,4.307,3543.0,3542.9,0.002]
[1754287927166,4.307,3543.0,3542.9,2.8245465]
[1754287927906,4.307,3543.0,3542.9,0.002]
[1754287930088,4.307,3543.0,3542.9,2.8245465]
[1754287930408,4.305,3543.0,3542.9,2.8245465]
[1754287930721,4.305,3543.0,3542.9,0.002]
[1754287930889,4.304,3543.0,3542.9,0.002]
[1754287931210,5.45164378,3543.1,3542.9,2.8245465]
[1754287931420,4.304,3543.0,3542.9,2.8245465]
[1754287931877,4.304,3543.0,3542.9,0.002]
[1754287932412,4.304,3543.0,3542.9,2.8245465]
[1754287932603,4.7397,3543.0,3542.9,2.8245465]
[1754287933097,4.7397,3543.0,3542.9,0.002]
[1754287933302,4.7397,3543.0,3542.9,2.8245465]
[1754287933819,4.304,3543.0,3542.9,2.8245465]
[1754287935023,4.304,3543.0,3542.9,0.002]
[1754287935383,4.304,3543.0,3542.9,2.8245465]
[1754287935623,4.304,3543.0,3542.9,5.1257465]
[1754287936388,4.87514378,3543.1,3543.0,2.82246683]
[1754287936589,9.17714378,3543.1,3543.0,4.68856683]
[1754287937626,9.17714378,3543.1,3542.9,0.002]
[1754287937828,2.5458,3543.0,3542.9,0.002]
[1754287938203,2.5458,3543.0,3542.9,2.8245465]
[1754287938532,4.8775,3543.0,3542.9,2.8245465]
[1754287938685,4.8775,3543.0,3542.9,0.002]
[1754287939324,4.8775,3543.0,3542.9,2.8245465]
[1754287939624,4.8765,3543.0,3542.9,2.8245465]
[1754287939790,4.8765,3543.0,3542.9,0.002]
[1754287940302,0.5765,3543.0,3542.9,0.002]
[1754287940491,4.8765,3543.0,3542.9,0.002]
[1754287941022,4.4408,3543.0,3542.9,2.8245465]
[1754287941926,4.4408,3543.0,3542.9,0.002]
[1754287943109,4.8765,3543.0,3542.9,2.8245465]
[1754287943315,4.8765,3543.0,3542.9,0.002]
[1754287944216,4.4408,3543.0,3542.9,0.002]
[1754287944413,4.4398,3543.0,3542.9,0.002]
[1754287945356,4.8755,3543.0,3542.9,0.002]
[1754287945636,4.4398,3543.0,3542.9,0.002]
[1754287947270,4.4398,3543.0,3542.9,2.8245465]
[1754287947840,0.1408,3543.0,3542.9,2.8245465]
[1754287948010,4.4388,3543.0,3542.9,2.8245465]
[1754287948959,4.4388,3543.0,3542.9,0.002]
[1754287949513,4.4378,3543.0,3542.9,0.002]
[1754287950743,4.9053,3543.0,3542.9,0.002]
[1754287951265,16.1586306,3543.0,3542.9,0.002]
[1754287951565,15.13261061,3543.0,3542.9,0.002]
[1754287957710,10.83561061,3543.0,3542.9,0.002]
[1754287957919,15.13261061,3543.0,3542.9,0.002]
[1754287959167,10.83561061,3543.0,3542.9,0.002]
[1754287959357,15.13261061,3543.0,3542.9,0.002]
[1754287959886,17.60630923,3543.0,3542.9,0.002]
[1754287960858,3.37294489,3542.4,3542.3,1e-08]
[1754287961039,3.37350283,3541.7,3541.3,0.002]
[1754287961237,3.37374202,3541.4,3541.3,0.002]
[1754287961450,7.81154202,3541.4,3541.3,0.002]
[1754287961672,10.25874202,3541.4,3541.3,0.002]
[1754287961872,10.57854076,3541.4,3541.3,0.002]
[1754287962073,17.36154076,3541.4,3541.3,0.002]
[1754287962325,19.86154076,3541.4,3541.3,0.002]
[1754287962583,19.86654076,3541.4,3541.3,1e-08]
[1754287963153,26.43768454,3541.4,3541.3,1e-08]
[1754287966279,24.74168454,3541.4,3541.3,1e-08]
[1754287968795,6.37406099,3541.0,3540.9,1e-08]
[1754287968999,25.2193229,3541.0,3540.9,1e-08]
[1754287969279,23.3625229,3541.0,3540.9,1e-08]
[1754287969683,27.6665229,3541.0,3540.9,1e-08]
[1754287969985,30.53476997,3541.0,3540.9,1e-08]
[1754287970285,32.38628681,3541.0,3540.9,1e-08]
[1754287973615,32.38628681,3541.0,3538.9,2.82573644]
[1754287973616,0.55,3540.8,3538.9,2.82573644]
[1754287973748,3.37509817,3539.7,3539.6,1.9783]
[1754287974070,3.3752578,3539.5,3539.4,2.4346]
[1754287974261,7.8228578,3539.5,3539.4,1.9783]
[1754287975272,4.9976,3539.5,3539.4,1.9783]
[1754287975591,4.9966,3539.5,3539.4,1.9783]
[1754287975887,7.8218578,3539.5,3539.4,1.9783]
[1754287977069,4.9966,3539.5,3539.4,1.9783]
[1754287977884,7.8218578,3539.5,3539.4,1.9783]
[1754287978087,3.37533762,3539.4,3538.7,2.8258935]
[1754287978286,4.854,3539.3,3539.2,1.9783]
[1754287978491,7.67941745,3539.3,3539.2,1.9783]
[1754287978807,7.82101745,3539.3,3539.2,1.9783]
[1754287979509,3.37557712,3539.1,3539.0,0.002]
[1754287979805,7.68057712,3539.1,3539.0,1.9317]
[1754287981105,3.37557712,3539.1,3539.0,1.9317]
[1754287981296,1.45802649,3539.6,3539.0,2.3868]
[1754287981476,4.28320692,3539.6,3539.0,1.9317]
[1754287981792,4.28320692,3539.6,3539.1,0.4551]
[1754287981793,4.314,3539.5,3539.1,0.4551]
[1754287981959,1.45802649,3539.6,3539.4,2.82533189]
[1754287982286,1.45802649,3539.6,3539.0,0.002]
[1754287982485,1.45802649,3539.6,3539.4,2.82533762]
[1754287982694,4.315,3539.5,3539.4,2.82533762]
[1754287983370,4.315,3539.5,3539.4,5.21013762]
[1754287983968,0.55,3539.5,3539.4,1.9297]
[1754287984168,4.865,3539.5,3539.4,2.3848]
[1754287984587,1.45802649,3539.6,3539.4,5.21013762]
[1754287984792,4.315,3539.5,3539.4,4.75503762]
[1754287985303,4.315,3539.5,3539.4,5.21013762]
[1754287986512,4.315,3539.5,3539.4,2.3848]
[1754287987103,1.45802649,3539.6,3539.4,2.3848]
[1754287987308,4.315,3539.5,3539.1,2.82556419]
[1754287987507,0.55,3539.4,3539.0,2.8276473]
[1754287987710,4.315,3539.3,3539.1,2.8255704]
[1754287987906,4.315,3539.3,3539.2,5.21029728]
[1754287988687,0.55,3539.5,3539.4,2.82533762]
[1754287988908,4.317,3539.5,3539.4,2.82533762]
[1754287989211,4.316,3539.5,3539.4,5.21013762]
[1754287989575,4.4576,3539.5,3539.4,5.21013762]
[1754287992787,4.4576,3539.5,3539.4,2.3848]
[1754287993222,4.4556,3539.5,3539.4,2.3848]
[1754287993423,0.1416,3539.5,3539.4,2.3848]
[1754287993624,4.4556,3539.5,3539.4,2.3848]
[1754287994023,4.4556,3539.5,3539.3,2.82540195]
[1754287994024,4.4556,3539.5,3539.2,2.82548781]
[1754287994225,4.4556,3539.5,3539.0,2.82763977]
[1754287994226,0.58531672,3539.4,3539.0,2.82763977]
[1754287994442,0.1416,3539.2,3539.1,2.82556388]
[1754287994595,0.1416,3539.2,3539.0,0.002]
[1754287994791,4.864,3539.1,3539.0,0.002]
[1754287995539,4.864,3539.1,3539.0,1.9317]
[1754287997230,4.864,3539.1,3539.0,0.002]
[1754288000255,4.864,3539.1,3539.0,1.9317]
[1754288001555,4.864,3539.1,3539.0,0.002]
[1754288001754,8.69918125,3539.1,3539.0,0.002]
[1754288002057,8.13870413,3539.1,3539.0,0.002]
[1754288002234,10.96428125,3539.1,3539.0,0.002]
[1754288002624,8.13870413,3539.1,3539.0,0.002]
[1754288006850,6.30400413,3539.1,3539.0,0.002]
[1754288007931,1.99000413,3539.1,3539.0,0.002]
[1754288008136,6.30000413,3539.1,3539.0,0.002]
[1754288010757,11.02368125,3539.1,3539.0,0.002]
[1754288012269,15.89882503,3539.1,3539.0,0.002]
[1754288015488,18.89882503,3539.1,3539.0,0.002]
[1754288016897,20.59682503,3539.1,3539.0,0.002]
[1754288019971,20.74448475,3539.1,3539.0,0.002]
[1754288021096,2.82589651,3538.7,3538.6,0.002]
[1754288021408,8.38766635,3538.7,3538.6,0.002]
[1754288021861,8.84056635,3538.7,3538.6,0.002]
[1754288023520,10.73866635,3538.7,3538.6,0.002]
[1754288025113,20.30981013,3538.7,3538.6,0.002]
[1754288027526,5.0741361,3538.4,3538.3,0.002]
[1754288027724,5.0741361,3538.4,3537.6,0.002]
[1754288027725,3.37669531,3537.7,3537.6,0.002]
[1754288027931,14.47269531,3537.7,3537.6,0.002]
[1754288028635,24.04183909,3537.7,3537.6,0.002]
[1754288028828,26.53443909,3537.7,3537.6,0.002]
[1754288029038,29.40268616,3537.7,3537.6,0.002]
[1754288030699,22.74668616,3537.7,3537.6,0.002]
[1754288030894,16.10874378,3537.7,3537.6,2.2857]
[1754288031213,16.10874378,3537.7,3537.6,5.11247521]
[1754288031397,11.80374378,3537.7,3537.6,5.11247521]
[1754288031599,16.10874378,3537.7,3537.6,5.11247521]
[1754288032451,11.80374378,3537.7,3537.6,5.11247521]
[1754288032597,11.097,3537.7,3537.6,5.11247521]
[1754288033144,11.098,3537.7,3537.6,5.11247521]
[1754288035438,11.098,3537.7,3537.6,2.2857]
[1754288035735,11.098,3537.7,3537.6,5.11247521]
[1754288036732,11.098,3537.7,3537.6,2.2857]
[1754288036953,11.098,3537.7,3537.6,5.11247521]
[1754288037093,11.648,3537.7,3537.6,2.2857]
[1754288037295,11.648,3537.7,3537.6,5.11247521]
[1754288037528,11.648,3537.7,3537.6,4.64787521]
[1754288037730,11.648,3537.7,3537.6,1.8211]
[1754288038664,11.648,3537.7,3537.6,0.002]
[1754288038830,12.82696,3537.7,3537.6,0.002]
[1754288039683,17.69810378,3537.7,3537.6,0.002]
[1754288039843,37.241361,3537.7,3537.6,0.002]
[1754288040678,40.241361,3537.7,3537.6,0.002]
[1754288040844,21.53469909,3537.7,3537.6,0.002]
[1754288041039,25.84269909,3537.7,3537.6,0.002]
[1754288043440,19.21779909,3537.7,3537.6,0.002]
[1754288043640,23.52479909,3537.7,3537.6,0.002]
[1754288043876,25.84169909,3537.7,3537.6,0.002]
[1754288044187,40.241361,3537.7,3537.6,0.002]
[1754288045051,41.939361,3537.7,3537.6,0.002]
[1754288046543,42.052673,3537.7,3537.6,0.002]
[1754288047461,12.9460788,3537.4,3537.3,0.002]
[1754288047662,17.3976788,3537.4,3537.3,0.002]
[1754288047983,19.7145788,3537.4,3537.3,0.002]
[1754288050469,20.1597788,3537.4,3537.3,0.002]
[1754288052623,3.55,3537.1,3536.5,1.7547]
[1754288052826,4.86714377,3537.2,3536.5,1.7547]
[1754288052827,0.55,3536.9,3536.5,1.7547]
[1754288053027,3.51923848,3536.6,3536.2,0.4452]
[1754288053223,0.55,3536.4,3536.3,1.7547]
[1754288053522,0.6916,3536.4,3536.3,1.7547]
[1754288053690,5.55874377,3536.4,3536.3,1.7547]
[1754288054090,5.55874377,3536.4,3536.3,2.1979]
[1754288054831,5.55874377,3536.4,3536.3,5.02571438]
[1754288055029,5.00874377,3536.4,3536.3,5.02571438]
[1754288055329,9.31674377,3536.4,3536.3,5.02571438]
[1754288055525,9.31674377,3536.4,3536.3,2.1979]
[1754288055701,9.31674377,3536.4,3536.3,5.02571438]
[1754288055905,9.86574377,3536.4,3536.3,5.02571438]
[1754288057450,9.86574377,3536.4,3536.3,2.1979]
[1754288057744,9.86674377,3536.4,3536.3,5.02571438]
[1754288057902,9.86674377,3536.4,3536.3,2.1979]
[1754288062035,5.55874377,3536.4,3536.3,5.02571438]
[1754288062238,9.86674377,3536.4,3536.3,5.02571438]
[1754288064234,5.55874377,3536.4,3536.3,5.02571438]
[1754288064435,9.31674377,3536.4,3536.3,5.02571438]
[1754288064636,4.4486,3536.4,3536.3,5.02571438]
[1754288065030,4.307,3536.4,3536.3,5.02571438]
[1754288065549,4.307,3536.4,3536.3,5.02771438]
[1754288068758,0.1416,3536.5,3536.4,2.82773441]
[1754288068966,4.307,3536.4,3536.3,2.82981438]
[1754288069520,4.307,3536.4,3536.3,5.12711438]
[1754288071769,0.1416,3536.7,3536.6,2.8275745]
[1754288071933,4.4486,3536.7,3536.6,2.8275745]
[1754288072133,4.4486,3536.7,3536.6,5.1248745]
[1754288073371,4.4486,3536.7,3536.6,4.6611745]
[1754288073567,0.55,3536.6,3536.3,0.002]
[1754288073866,0.1416,3536.5,3536.3,2.82981263]
[1754288074257,0.1416,3536.5,3536.3,0.002]
[1754288074770,0.1416,3536.5,3536.3,2.82981225]
[1754288075265,0.1416,3536.5,3536.3,0.002]
[1754288076037,2.3145,3536.4,3536.3,0.002]
[1754288076369,1.0203,3536.4,3536.3,0.002]
[1754288077735,5.3273,3536.4,3536.3,0.002]
[1754288077935,4.857,3536.4,3536.3,0.002]
[1754288078145,4.857,3536.4,3536.3,1.8356]
[1754288078474,4.857,3536.4,3536.3,4.66341438]
[1754288078769,0.55,3536.4,3536.3,5.12711438]
[1754288078983,4.857,3536.4,3536.3,5.12711438]
[1754288081403,4.857,3536.4,3536.3,4.66341438]
[1754288082901,4.307,3536.4,3536.3,5.12711438]
[1754288083249,0.55,3537.0,3536.4,2.82771952]
[1754288083447,0.001,3537.2,3536.6,2.82751102]
[1754288083448,0.55,3536.8,3536.6,2.82751102]
[1754288083680,4.857,3536.7,3536.6,2.82751102]
[1754288083949,4.857,3536.7,3536.6,4.66111102]
[1754288084775,4.857,3536.7,3536.6,1.8336]
[1754288086070,0.55,3536.6,3536.5,2.82762289]
[1754288086265,0.55,3536.6,3536.4,4.66131407]
[1754288086466,4.307,3536.5,3536.4,2.82771407]
[1754288086976,4.307,3536.5,3536.4,4.66131407]
[1754288087673,4.307,3536.5,3536.4,1.8336]
[1754288087879,4.307,3536.5,3536.4,2.82773441]
[1754288088593,4.307,3536.5,3536.4,4.66133441]
[1754288091217,4.4486,3536.5,3536.4,4.66133441]
[1754288092516,4.4486,3536.5,3536.4,4.8336]
[1754288092713,4.4486,3536.5,3536.4,7.66133441]
[1754288092914,4.4486,3536.5,3536.4,5.82773441]
[1754288093138,4.4486,3536.5,3536.4,2.82773441]
[1754288093714,4.4486,3536.5,3536.3,2.82978802]
[1754288093901,4.4486,3536.5,3536.4,2.82773441]
[1754288094416,4.4486,3536.5,3536.3,2.82981238]
[1754288094583,2.8645,3536.4,3536.3,0.002]